bitfinex-derivatives/quotes_ETHF0:USTF0_20241004
["timestamp","ask_amount","ask_price","bid_price","bid_amount"]
[1728081295150,1.19,2421.4,2421.2,0.4051]
[1728081295359,1.19,2421.4,2421.3,0.41298]
[1728081295746,1.19,2421.4,2421.2,0.4051]
[1728081295954,1.60296,2421.4,2421.2,0.81808]
[1728081296459,1.19,2421.4,2421.3,0.83968]
[1728081297159,1.19,2421.4,2421.3,0.4267]
[1728081297353,1.60296,2421.4,2421.3,0.4267]
[1728081298453,1.19,2421.4,2421.2,0.40426624]
[1728081298656,8.5282,2421.3,2420.5,1.07673355]
[1728081298862,3.2078,2421.0,2420.6,0.93155959]
[1728081299053,1.19,2420.7,2420.6,0.3956]
[1728081299254,1.19,2420.7,2420.6,0.93133054]
[1728081299766,1.19,2420.7,2420.6,1.34213054]
[1728081300669,1.19,2420.7,2420.6,1.34212967]
[1728081301254,3.62084,2421.0,2420.6,5.47332513]
[1728081301255,3.2078,2421.0,2420.6,5.47332513]
[1728081301454,1.19,2421.0,2420.7,0.94880513]
[1728081301654,1.19,2421.0,2420.8,0.53572513]
[1728081301851,1.19,2421.0,2420.9,0.4077]
[1728081305965,1.60303,2421.0,2420.9,0.4077]
[1728081306156,1.60303,2421.0,2420.6,0.8064]
[1728081306157,1.19,2421.0,2420.6,0.8064]
[1728081306358,1.60307,2420.8,2420.7,0.53545299]
[1728081306558,1.60307,2420.8,2420.6,0.8064]
[1728081306758,0.82618,2420.7,2420.6,0.8064]
[1728081307056,0.82618,2420.7,2420.6,1.34185326]
[1728081307267,0.82618,2420.7,2420.6,0.93105326]
[1728081307656,0.82618,2420.7,2420.6,0.3956]
[1728081310454,0.4131,2420.7,2420.4,0.4043]
[1728081310759,1.60312,2420.5,2420.3,0.3994]
[1728081310960,1.60312,2420.5,2420.3,0.8021]
[1728081311359,1.19,2420.5,2420.3,1.21524]
[1728081315868,1.19,2420.5,2420.4,0.41313]
[1728081316376,4.3978,2420.5,2420.4,0.41313]
[1728081317074,3.2078,2420.5,2420.4,0.41313]
[1728081317874,1.19,2420.6,2420.4,0.41313]
[1728081319185,1.19,2420.6,2420.3,0.8021]
[1728081319386,1.19,2420.6,2420.5,0.41311]
[1728081320277,1.286,2420.9,2420.7,0.41307]
[1728081320477,4.3978,2420.9,2420.8,0.81046]
[1728081321180,4.3978,2420.9,2420.8,0.3974]
[1728081321979,1.19,2420.9,2420.8,0.3974]
[1728081324284,1.60304,2420.9,2420.8,0.3974]
[1728081324485,1.19,2420.9,2420.8,0.3974]
[1728081324690,4.3978,2420.9,2420.8,0.3974]
[1728081325081,0.41306,2420.8,2420.4,0.41311]
[1728081325283,0.4102,2420.7,2420.6,0.4131]
[1728081325493,1.19,2420.7,2420.6,0.4131]
[1728081328891,1.19,2420.7,2420.5,0.4167]
[1728081329185,1.19,2420.7,2420.6,0.4131]
[1728081329782,4.3978,2420.9,2420.6,0.4131]
[1728081330091,4.3978,2420.9,2420.7,0.3997]
[1728081330287,4.81084,2420.9,2420.7,0.7982]
[1728081330485,4.3978,2420.9,2420.7,0.7982]
[1728081331089,4.81085,2420.9,2420.7,0.7982]
[1728081331696,4.3978,2420.9,2420.7,0.7982]
[1728081332087,1.19,2420.9,2420.7,0.7982]
[1728081332288,4.3978,2420.9,2420.7,0.7982]
[1728081333190,1.19,2420.9,2420.7,0.7982]
[1728081333398,4.3978,2420.9,2420.7,1.21128]
[1728081334395,4.81085,2420.9,2420.7,0.7982]
[1728081335194,4.3978,2420.9,2420.7,0.7982]
[1728081335701,4.3978,2420.9,2420.7,1.21128]
[1728081336200,1.19,2420.9,2420.7,1.21128]
[1728081336398,4.3978,2420.9,2420.7,1.21128]
[1728081336803,3.2078,2420.9,2420.7,1.21128]
[1728081337692,3.2078,2420.9,2420.7,0.7982]
[1728081337895,3.2078,2420.9,2420.7,1.21127]
[1728081338489,3.2078,2420.9,2420.7,0.7982]
[1728081338695,2.01323,2421.0,2420.7,1.21127]
[1728081340497,0.4102,2421.0,2420.7,0.7982]
[1728081340696,2.01323,2421.0,2420.7,1.21126]
[1728081344101,2.01323,2421.0,2420.7,0.7982]
[1728081344403,2.01323,2421.0,2420.8,0.41306]
[1728081345005,1.6002,2421.0,2420.9,0.41304]
[1728081346701,4.808,2421.0,2420.7,0.7982]
[1728081346900,4.808,2421.0,2420.8,0.41305]
[1728081347508,4.808,2421.0,2420.9,0.41304]
[1728081347704,1.6002,2421.0,2420.9,0.41304]
[1728081347899,1.6002,2421.0,2420.8,0.41306]
[1728081349107,2.01323,2421.0,2420.8,0.41306]
[1728081352115,2.01323,2421.0,2420.7,1.21127]
[1728081352909,2.01323,2421.0,2420.8,0.41306]
[1728081353609,5.22103,2421.0,2420.8,0.41306]
[1728081353809,5.22103,2421.0,2420.7,0.7982]
[1728081354009,5.22103,2421.0,2420.7,1.21127]
[1728081355306,5.22103,2421.0,2420.8,0.41306]
[1728081356614,5.22103,2421.0,2420.7,1.21127]
[1728081359309,5.22103,2421.0,2420.8,0.53552041]
[1728081359618,5.22103,2421.0,2420.7,1.21127]
[1728081359809,5.22103,2421.0,2420.8,0.53552043]
[1728081360009,5.22103,2421.0,2420.7,1.21127]
[1728081360210,5.22103,2421.0,2420.8,0.53552039]
[1728081360410,5.22103,2421.0,2420.7,1.21127]
[1728081360617,5.22103,2421.0,2420.8,0.53557017]
[1728081360818,5.22103,2421.0,2420.8,0.41306]
[1728081362017,5.22103,2421.0,2420.7,1.21126]
[1728081362217,5.22103,2421.0,2420.8,0.53557393]
[1728081362420,5.22103,2421.0,2420.7,0.7982]
[1728081362618,4.808,2421.0,2420.8,0.5355823]
[1728081362917,0.41304,2420.9,2420.7,1.21126]
[1728081363118,4.808,2421.0,2420.7,1.21126]
[1728081363317,5.22104,2421.0,2420.8,0.53559247]
[1728081363517,5.22104,2421.0,2420.7,1.21126]
[1728081363718,5.22104,2421.0,2420.8,0.53568101]
[1728081363915,5.22104,2421.0,2420.7,1.21126]
[1728081364218,5.22104,2421.0,2420.8,0.53568174]
[1728081364414,5.22104,2421.0,2420.7,1.21126]
[1728081364607,5.22104,2421.0,2420.8,0.5357377]
[1728081364812,5.22104,2421.0,2420.7,1.21126]
[1728081365308,5.22104,2421.0,2420.8,0.94879512]
[1728081365507,5.22104,2421.0,2420.8,0.41306]
[1728081368224,2.01324,2421.0,2420.8,0.41306]
[1728081368624,5.22104,2421.0,2420.8,0.41306]
[1728081369128,4.808,2421.0,2420.7,0.7982]
[1728081369322,1.19,2420.8,2420.4,1.07673355]
[1728081369527,0.4131,2420.6,2420.5,1.39308154]
[1728081369725,1.6031,2420.6,2420.5,0.53580059]
[1728081369925,1.9944,2420.6,2420.5,0.53580059]
[1728081371531,0.3913,2420.6,2420.5,0.94891059]
[1728081371727,0.41307,2420.8,2420.6,0.41309]
[1728081371931,0.41307,2420.8,2420.7,0.3905]
[1728081385237,1.1772,2420.9,2420.7,0.3905]
[1728081385431,3.2078,2421.0,2420.9,0.41304]
[1728081385633,3.2078,2421.0,2420.8,0.8002]
[1728081385938,0.41304,2420.9,2420.8,0.8002]
[1728081386146,3.2078,2421.0,2420.8,1.21326]
[1728081386147,3.62084,2421.0,2420.8,1.21326]
[1728081387038,1.19,2420.9,2420.8,1.21326]
[1728081391441,3.62083,2421.0,2420.8,0.8002]
[1728081391640,3.62083,2421.0,2420.9,0.41304]
[1728081391839,3.2078,2421.0,2420.9,0.41304]
[1728081392545,3.62083,2421.0,2420.9,0.41304]
[1728081392747,3.2078,2421.0,2420.9,0.41304]
[1728081394136,1.19,2421.1,2420.9,0.41304]
[1728081394343,3.62083,2421.0,2420.9,0.41304]
[1728081395347,3.62083,2421.0,2420.8,0.8002]
[1728081395549,3.62083,2421.0,2420.8,1.21325]
[1728081395741,3.62083,2421.0,2420.8,0.8002]
[1728081395941,3.62083,2421.0,2420.9,0.41304]
[1728081396551,3.2078,2421.0,2420.9,0.41304]
[1728081397254,3.62083,2421.0,2420.9,0.41304]
[1728081397843,0.41303,2421.0,2420.9,0.41304]
[1728081398046,3.62083,2421.0,2420.9,0.41304]
[1728081400555,3.2078,2421.0,2420.9,0.41304]
[1728081403160,1.60302,2421.1,2420.9,0.41304]
[1728081403761,3.2078,2421.0,2420.9,0.41304]
[1728081405473,1.60302,2421.1,2420.9,0.41304]
[1728081405859,3.2078,2421.0,2420.9,0.41304]
[1728081407268,1.60302,2421.1,2420.9,0.41304]
[1728081407570,3.2078,2421.0,2420.9,0.41304]
[1728081408267,1.60302,2421.1,2420.9,0.41304]
[1728081409072,3.2078,2421.0,2420.9,0.41304]
[1728081411068,3.2078,2421.0,2420.9,0.81924]
[1728081413063,1.60302,2421.1,2420.9,0.81924]
[1728081413264,3.2078,2421.0,2420.9,0.81924]
[1728081413664,3.62083,2421.0,2420.9,0.81924]
[1728081413864,3.2078,2421.0,2420.9,0.81924]
[1728081414564,1.60302,2421.1,2420.9,0.81924]
[1728081414771,3.2078,2421.0,2420.9,0.81924]
[1728081415071,1.60302,2421.1,2420.9,0.81924]
[1728081415475,3.2078,2421.0,2420.9,0.81924]
[1728081419069,3.2078,2421.0,2420.5,1.07673355]
[1728081419371,3.2078,2421.0,2420.7,0.41307]
[1728081419372,0.80156,2420.9,2420.7,0.41307]
[1728081419564,0.3973,2420.8,2420.7,0.41307]
[1728081419765,0.3973,2420.8,2420.7,0.94862272]
[1728081419966,0.3973,2420.8,2420.7,0.53555272]
[1728081420177,1.23486,2420.8,2420.7,0.53555272]
[1728081420666,6.55606,2420.8,2420.7,0.53555272]
[1728081420866,0.3973,2420.8,2420.7,0.53555272]
[1728081421071,0.3973,2420.8,2420.7,0.94863272]
[1728081421372,0.3973,2420.8,2420.7,0.94865075]
[1728081422171,0.3973,2420.8,2420.7,0.53557075]
[1728081422172,0.81036,2420.8,2420.7,0.53557075]
[1728081424375,0.81036,2420.8,2420.4,1.48373355]
[1728081424376,5.7185,2420.8,2420.4,1.48373355]
[1728081424576,0.41309,2420.7,2420.5,1.39278993]
[1728081424765,0.41309,2420.7,2420.6,0.53569059]
[1728081426078,7.75209,2420.7,2420.6,0.53569059]
[1728081426277,0.41312,2420.5,2420.2,1.48988355]
[1728081426468,0.3874,2420.4,2420.3,1.39302621]
[1728081427177,0.3874,2420.4,2420.3,1.80617621]
[1728081427680,0.3874,2420.4,2420.3,1.39302621]
[1728081427977,0.3874,2420.4,2420.3,1.39290211]
[1728081428175,0.3874,2420.4,2420.3,0.41315]
[1728081428382,0.3874,2420.4,2420.3,1.80585774]
[1728081429279,0.3874,2420.4,2420.3,0.53565682]
[1728081429475,0.80053,2420.4,2420.3,0.53565682]
[1728081431280,0.80053,2420.4,2420.1,4.00857]
[1728081431587,0.4039,2420.3,2420.2,0.94865035]
[1728081433783,0.80053,2420.4,2420.2,0.94865035]
[1728081433983,0.80053,2420.4,2420.2,0.41316]
[1728081434482,0.3874,2420.4,2420.2,0.41316]
[1728081435685,0.41315,2420.3,2420.1,0.80077]
[1728081435880,0.3874,2420.4,2420.2,0.53521166]
[1728081436082,0.3874,2420.4,2420.1,0.3876]
[1728081436083,0.41315,2420.3,2420.1,0.3876]
[1728081437382,1.5774,2420.4,2420.1,0.3876]
[1728081437587,0.41315,2420.3,2420.1,0.3876]
[1728081439891,1.5774,2420.4,2420.1,0.3876]
[1728081440091,1.99054,2420.4,2420.1,0.80077]
[1728081440881,1.60316,2420.2,2419.8,0.41323]
[1728081441084,1.60321,2419.9,2419.8,0.4106]
[1728081441583,5.73601,2419.9,2419.8,0.4106]
[1728081441990,6.13601,2419.9,2419.8,0.4106]
[1728081443308,0.41328,2419.6,2419.2,0.41332]
[1728081443593,0.80688,2419.5,2419.3,0.4065]
[1728081443987,0.3936,2419.5,2419.3,0.81981]
[1728081444181,0.3936,2419.5,2419.3,0.4065]
[1728081444580,0.4133,2419.4,2419.3,0.4065]
[1728081446687,0.3936,2419.5,2419.4,0.4133]
[1728081447894,0.41326,2419.7,2419.4,0.4133]
[1728081448095,0.41326,2419.7,2419.4,0.8266]
[1728081448696,0.41326,2419.7,2419.5,0.41327]
[1728081449196,2.00504,2419.8,2419.6,0.83845]
[1728081449790,3.62102,2419.9,2419.7,0.41325]
[1728081449988,3.2078,2419.9,2419.7,0.3872]
[1728081450491,1.19,2419.8,2419.7,0.80044]
[1728081452185,4.81102,2419.9,2419.7,0.80044]
[1728081452594,4.81102,2419.9,2419.8,0.41323]
[1728081452994,4.3978,2419.9,2419.8,0.41323]
[1728081454304,1.19,2420.1,2420.0,0.4132]
[1728081454490,0.4018,2420.2,2420.0,0.4132]
[1728081454491,2.00497,2420.2,2420.0,0.4132]
[1728081454692,1.5918,2420.2,2420.1,0.41318]
[1728081454990,3.2078,2420.4,2420.1,1.19]
[1728081455193,3.2078,2420.4,2420.3,0.41315]
[1728081455399,1.19,2420.7,2420.2,2.4093]
[1728081455701,0.41308,2420.7,2420.5,0.4131]
[1728081455996,0.41308,2420.7,2420.6,0.389]
[1728081460702,3.2078,2420.8,2420.6,0.389]
[1728081460999,3.2078,2420.8,2420.7,1.20308]
[1728081465000,0.41306,2420.9,2420.7,1.20308]
[1728081470208,4.00673,2421.0,2420.8,0.41306]
[1728081470601,4.00673,2421.0,2420.9,0.4119]
[1728081478509,4.7837,2421.0,2420.3,1.03285]
[1728081478713,0.3921,2420.9,2420.5,0.7942]
[1728081479414,0.41307,2420.8,2420.6,0.41308]
[1728081481709,0.41307,2420.8,2420.0,3.2078]
[1728081481710,7.339,2420.7,2420.0,3.2078]
[1728081481913,0.41315,2420.3,2420.2,0.4038]
[1728081483711,0.41315,2420.3,2419.9,1.5792]
[1728081483712,5.16489,2420.3,2419.9,0.3892]
[1728081483914,2.22289,2420.3,2419.9,0.799]
[1728081484111,0.41319,2420.1,2419.9,0.799]
[1728081484416,0.4132,2420.0,2419.9,0.4098]
[1728081484610,0.8065,2420.0,2419.9,0.4098]
[1728081484812,0.3933,2420.0,2419.9,0.4098]
[1728081485006,0.8065,2420.0,2419.9,0.4098]
[1728081485205,0.3933,2420.0,2419.9,0.4098]
[1728081486318,0.3933,2420.0,2419.9,0.82301]
[1728081486710,0.3933,2420.0,2419.9,0.4098]
[1728081486915,0.3933,2420.0,2419.9,0.82301]
[1728081488119,0.81247,2420.2,2419.9,0.82301]
[1728081488120,0.41317,2420.2,2419.9,0.82301]
[1728081488417,0.82137,2420.2,2419.9,1.22831]
[1728081489319,0.82137,2420.2,2420.0,0.4132]
[1728081501631,0.82137,2420.2,2419.9,0.4098]
[1728081501632,0.4132,2420.0,2419.9,0.4098]
[1728081501927,0.4132,2420.0,2419.9,0.82301]
[1728081502121,4.46949,2420.1,2419.9,0.82301]
[1728081502729,4.0563,2420.1,2420.0,0.4132]
[1728081503031,4.46949,2420.1,2419.9,0.82301]
[1728081503430,4.0563,2420.1,2420.0,0.4132]
[1728081503828,15.3783,2420.1,2419.2,4.28453355]
[1728081504131,0.41327,2419.6,2419.5,0.4014]
[1728081504628,0.4008,2419.6,2419.5,0.81468]
[1728081505036,0.4008,2419.6,2419.5,0.4014]
[1728081505240,0.4008,2419.6,2419.5,0.81468]
[1728081505529,0.4008,2419.6,2419.5,0.4014]
[1728081505920,0.4008,2419.6,2419.5,0.81468]
[1728081507538,0.4264,2419.8,2419.5,0.4014]
[1728081507723,1.19,2420.0,2419.8,0.41322]
[1728081507724,0.7957,2420.0,2419.8,0.41322]
[1728081508025,0.7957,2420.0,2419.9,0.4114]
[1728081508227,0.4068,2420.0,2419.9,0.82461]
[1728081508630,0.4068,2420.0,2419.9,0.4114]
[1728081509035,0.82,2420.0,2419.9,0.4114]
[1728081509226,0.4068,2420.0,2419.9,0.4114]
[1728081510240,5.7288,2420.0,2419.3,1.19]
[1728081510437,0.41325,2419.7,2419.5,0.4135]
[1728081510637,0.4239,2419.6,2419.5,0.4135]
[1728081510833,0.8112,2419.6,2419.5,0.4135]
[1728081512038,0.8112,2419.6,2419.5,0.82678]
[1728081513034,2.41448,2419.6,2419.3,0.8204]
[1728081513539,0.4239,2419.6,2419.5,0.41328]
[1728081513934,0.4239,2419.6,2419.3,2.0104]
[1728081514330,0.4239,2419.6,2419.3,1.5971]
[1728081514547,0.4239,2419.6,2419.4,0.4133]
[1728081516132,0.4239,2419.6,2419.3,1.5971]
[1728081516338,0.4239,2419.6,2419.4,0.4133]
[1728081517039,0.4239,2419.6,2419.5,0.402]
[1728081521331,1.60324,2419.8,2419.5,0.81527]
[1728081521838,1.60324,2419.8,2419.6,0.3995]
[1728081523540,2.01924,2419.8,2419.6,0.3995]
[1728081524638,1.606,2419.8,2419.6,0.3995]
[1728081525144,0.41325,2419.7,2419.6,0.3995]
[1728081525747,2.01924,2419.8,2419.6,0.3995]
[1728081528441,0.41325,2419.7,2419.6,0.3995]
[1728081530548,0.416,2419.8,2419.6,0.3995]
[1728081530852,0.41325,2419.7,2419.6,0.3995]
[1728081532551,12.35595,2419.7,2419.1,0.83894]
[1728081532752,1.60332,2419.3,2419.2,0.398]
[1728081533645,5.3236,2419.3,2418.8,1.07673355]
[1728081533842,0.41333,2419.2,2418.9,1.7733509]
[1728081534047,0.41333,2419.2,2418.9,1.23837]
[1728081534247,1.19,2419.3,2418.9,1.23837]
[1728081534653,1.19,2419.3,2418.9,0.825]
[1728081534857,0.41333,2419.2,2418.9,1.23838]
[1728081535050,1.60333,2419.3,2419.0,0.41337]
[1728081535247,3.2078,2419.5,2419.3,0.41331]
[1728081535463,1.19,2419.6,2419.4,0.4221]
[1728081535649,1.60327,2419.6,2419.4,1.2577]
[1728081535960,1.19,2419.6,2419.4,1.67099]
[1728081536257,1.60328,2419.5,2419.4,0.8297]
[1728081537353,1.60328,2419.5,2419.4,0.4221]
[1728081539153,1.19,2419.5,2419.4,0.4221]
[1728081542546,1.19,2419.6,2419.4,0.83539]
[1728081542756,1.19,2419.6,2419.5,0.4139]
[1728081544763,1.19,2419.6,2419.5,0.8368]
[1728081545053,1.60327,2419.6,2419.5,0.8368]
[1728081546356,1.19,2419.6,2419.5,0.8368]
[1728081546655,1.60327,2419.6,2419.5,0.8368]
[1728081548864,3.62104,2419.8,2419.5,0.8368]
[1728081549052,3.62104,2419.8,2419.6,0.41326]
[1728081549450,3.62104,2419.8,2419.7,0.82795]
[1728081549451,3.2078,2419.8,2419.7,0.82795]
[1728081549651,0.826,2420.0,2419.7,0.4147]
[1728081550053,0.826,2420.0,2419.7,0.82794]
[1728081550766,0.41322,2419.9,2419.7,0.82794]
[1728081551154,1.60322,2419.9,2419.7,0.4147]
[1728081551555,1.60323,2419.8,2419.5,0.8368]
[1728081551753,1.19,2419.8,2419.6,0.94875591]
[1728081552065,1.19,2419.8,2419.6,0.41325]
[1728081553562,1.60324,2419.8,2419.6,0.41325]
[1728081553768,1.19,2419.8,2419.6,0.41325]
[1728081554658,1.19,2419.8,2419.7,0.41325]
[1728081555264,0.79942,2419.9,2419.7,0.41325]
[1728081555559,1.60322,2419.9,2419.7,0.41325]
[1728081555760,1.60322,2419.9,2419.8,0.4245]
[1728081558160,1.19,2419.9,2419.8,0.4245]
[1728081558569,3.2078,2420.1,2419.8,0.4245]
[1728081558766,3.2078,2420.1,2420.0,0.4132]
[1728081562064,3.2078,2420.1,2419.5,1.07673355]
[1728081562065,14.5298,2420.1,2419.5,1.07673355]
[1728081562260,14.5298,2420.1,2419.4,1.61510033]
[1728081562261,1.60327,2419.6,2419.4,0.3911]
[1728081562471,0.81459,2419.5,2419.2,0.3869]
[1728081562768,1.60331,2419.4,2419.2,0.778]
[1728081562968,4.3978,2419.4,2419.2,0.778]
[1728081563174,1.19,2419.4,2419.2,0.778]
[1728081563566,1.20659,2419.5,2419.2,0.778]
[1728081566972,0.4133,2419.4,2419.2,0.778]
[1728081567568,0.7933,2419.5,2419.2,1.19132]
[1728081567569,0.4013,2419.5,2419.2,1.19132]
[1728081567977,0.81458,2419.5,2419.2,0.778]
[1728081568275,0.4013,2419.5,2419.2,1.19133]
[1728081569480,0.4013,2419.5,2419.2,0.778]
[1728081569670,0.41331,2419.4,2419.2,0.3911]
[1728081574576,0.8217,2419.5,2419.2,0.3911]
[1728081574770,0.41332,2419.3,2419.2,0.3911]
[1728081575273,0.41335,2419.2,2419.0,0.4046]
[1728081575474,0.82476,2419.1,2418.9,0.3923]
[1728081576476,0.41337,2419.0,2418.9,0.3923]
[1728081576673,4.41836,2419.1,2418.9,0.3923]
[1728081577175,4.41836,2419.1,2418.7,0.4187]
[1728081577176,6.585,2419.1,2418.7,0.4187]
[1728081577370,0.4134,2418.8,2418.7,0.4055]
[1728081577776,7.61841,2419.1,2418.7,0.4055]
[1728081578077,0.4134,2418.8,2418.7,0.4055]
[1728081578291,0.4134,2418.9,2418.7,0.4055]
[1728081582778,0.41339,2418.9,2418.7,0.4055]
[1728081583380,0.83689,2418.9,2418.7,0.4055]
[1728081585583,2.02689,2418.9,2418.7,0.4055]
[1728081585977,1.19,2418.9,2418.7,0.4055]
[1728081586186,1.60339,2418.9,2418.7,0.4055]
[1728081588378,1.19,2418.9,2418.7,0.4055]
[1728081588579,1.19,2418.8,2418.7,0.4055]
[1728081588790,5.45321,2419.1,2418.7,0.4055]
[1728081588791,1.60339,2418.9,2418.7,0.4055]
[1728081593085,0.4134,2418.8,2418.7,0.4055]
[1728081593282,1.60339,2418.9,2418.7,0.4055]
[1728081594091,1.19,2418.9,2418.7,0.4055]
[1728081594386,1.60339,2418.9,2418.7,0.4055]
[1728081595392,1.60339,2418.9,2418.8,0.8277]
[1728081596094,1.60339,2418.9,2418.7,0.4055]
[1728081600897,3.3038,2419.5,2418.8,4.1344]
[1728081601098,1.6033,2419.4,2419.1,0.41334]
[1728081601394,1.6033,2419.4,2419.2,0.794]
[1728081601395,0.41331,2419.4,2419.2,0.794]
[1728081601692,1.19,2419.3,2419.2,0.794]
[1728081603006,1.19,2419.3,2419.2,1.20733]
[1728081603193,1.19,2419.3,2419.2,0.794]
[1728081603696,1.19,2419.3,2419.2,1.20733]
[1728081605297,1.19,2419.3,2419.2,0.794]
[1728081609099,1.60332,2419.3,2419.2,0.4035]
[1728081609695,1.19,2419.3,2418.9,0.3887]
[1728081609895,0.41337,2419.0,2418.9,0.3887]
[1728081610104,1.60336,2419.1,2418.9,0.3887]
[1728081610601,1.60336,2419.1,2418.9,0.80208]
[1728081610799,1.19,2419.1,2418.9,0.80208]
[1728081611200,0.41335,2419.1,2418.9,0.80207]
[1728081611501,1.60334,2419.2,2418.9,0.80207]
[1728081612808,0.3957,2419.1,2419.0,0.41337]
[1728081613505,0.3957,2419.1,2418.9,0.80207]
[1728081614306,0.3957,2419.1,2419.0,0.41337]
[1728081614907,0.41339,2418.9,2418.8,0.425]
[1728081615207,0.3957,2419.1,2418.8,1.37359903]
[1728081615208,0.41337,2419.0,2418.8,1.37359903]
[1728081615408,0.41337,2419.0,2418.8,0.8384]
[1728081615608,0.3957,2419.1,2418.8,0.425]
[1728081615806,0.3957,2419.1,2419.0,0.41337]
[1728081616111,0.3957,2419.1,2418.9,0.41338]
[1728081619714,0.3957,2419.1,2418.8,0.425]
[1728081620011,0.3957,2419.1,2419.0,0.41337]
[1728081621502,0.3957,2419.1,2419.0,0.94906255]
[1728081623505,0.3957,2419.1,2419.0,0.41337]
[1728081623709,0.3957,2419.1,2419.0,0.94906061]
[1728081624213,0.3957,2419.1,2419.0,0.41337]
[1728081624407,0.3957,2419.1,2419.0,0.94905899]
[1728081624614,0.3957,2419.1,2419.0,1.48474804]
[1728081626115,0.3957,2419.1,2419.0,0.94905905]
[1728081627619,0.3957,2419.1,2419.0,0.41337]
[1728081628115,0.3957,2419.1,2419.0,0.94906724]
[1728081631108,0.3957,2419.1,2419.0,0.41337]
[1728081631517,0.3957,2419.1,2419.0,0.94910703]
[1728081632914,1.60333,2419.3,2419.0,0.53573703]
[1728081633128,2.01933,2419.3,2419.1,0.83314]
[1728081633335,2.01933,2419.3,2419.2,0.4085]
[1728081634031,0.416,2419.3,2419.2,0.4085]
[1728081634220,0.416,2419.3,2419.2,0.82183]
[1728081636635,0.82932,2419.3,2419.2,0.82183]
[1728081640531,0.416,2419.3,2419.2,0.82183]
[1728081641330,0.096,2419.7,2419.6,0.41327]
[1728081641530,0.41324,2419.8,2419.3,1.03329]
[1728081641531,0.41324,2419.8,2419.7,0.41325]
[1728081641837,0.41324,2419.8,2419.6,0.41325]
[1728081642037,0.41324,2419.8,2419.7,0.3938]
[1728081642339,0.41323,2419.8,2419.7,0.80705]
[1728081642534,6.89300553,2419.9,2419.7,0.80705]
[1728081642837,6.89300553,2419.9,2419.8,0.397]
[1728081643030,1.03316,2419.7,2419.3,0.4133]
[1728081643229,1.03316,2419.7,2419.2,1.07673355]
[1728081643230,1.60328,2419.5,2419.4,0.53582694]
[1728081643637,2.00958,2419.5,2419.4,0.53582694]
[1728081645137,2.00958,2419.5,2419.3,0.41332]
[1728081645538,2.00958,2419.5,2419.4,0.53572141]
[1728081646633,1.5963,2419.5,2419.4,0.53572141]
[1728081646837,1.5963,2419.5,2419.4,0.94902141]
[1728081647845,1.5963,2419.5,2419.4,0.94880926]
[1728081648546,1.5963,2419.5,2419.4,0.4133]
[1728081648735,1.5963,2419.5,2419.4,0.9487391]
[1728081648934,1.5963,2419.5,2419.4,0.4133]
[1728081649135,1.5963,2419.5,2419.4,0.94873905]
[1728081649337,1.5963,2419.5,2419.4,0.4133]
[1728081650145,2.00959,2419.5,2419.4,0.4133]
[1728081650347,1.5963,2419.5,2419.4,0.4133]
[1728081652551,1.5851,2419.6,2419.2,0.3938]
[1728081652845,1.19,2419.6,2419.5,0.41328]
[1728081653349,2.0308,2419.8,2419.3,1.44662]
[1728081653538,2.0308,2419.8,2419.4,0.93590926]
[1728081653539,1.6161,2419.8,2419.4,0.93590926]
[1728081653746,1.6161,2419.8,2419.7,0.41325]
[1728081655748,1.6161,2419.8,2419.6,0.41325]
[1728081656750,2.02933,2419.8,2419.6,0.41325]
[1728081659150,0.41325,2419.7,2419.6,0.41326]
[1728081659449,2.02934,2419.8,2419.6,0.41327]
[1728081660241,2.02934,2419.8,2419.5,1.21377]
[1728081660242,0.41325,2419.7,2419.5,1.21377]
[1728081660548,1.6161,2419.8,2419.5,1.21377]
[1728081660746,2.02934,2419.8,2419.5,1.21377]
[1728081661142,2.02934,2419.8,2419.5,0.8005]
[1728081661450,2.02934,2419.8,2419.6,0.41326]
[1728081662947,2.02934,2419.8,2419.7,0.41325]
[1728081662948,1.6161,2419.8,2419.7,0.41325]
[1728081663652,1.6161,2419.8,2419.6,0.41326]
[1728081666765,2.02933,2419.8,2419.6,0.41326]
[1728081667048,2.02933,2419.8,2419.5,1.21377]
[1728081667457,1.19,2419.6,2419.2,3.2078]
[1728081667649,0.4133,2419.4,2419.2,3.6253]
[1728081667952,0.41332,2419.3,2419.1,0.4172]
[1728081668150,0.41333,2419.2,2419.0,0.8287]
[1728081668456,2.42093,2419.3,2419.0,0.83137]
[1728081668658,2.0076,2419.3,2419.0,0.418]
[1728081668859,2.42092,2419.3,2419.0,0.83136]
[1728081670053,2.42092,2419.3,2419.0,0.418]
[1728081670256,2.42092,2419.3,2419.0,0.83136]
[1728081670957,2.0076,2419.3,2419.0,0.83136]
[1728081671156,2.42092,2419.3,2419.0,0.83136]
[1728081672552,1.60335,2419.1,2419.0,0.418]
[1728081672758,1.19,2419.1,2419.0,0.418]
[1728081673346,1.5879,2419.1,2419.0,0.418]
[1728081674753,1.5879,2419.1,2419.0,0.83137]
[1728081675156,1.5879,2419.1,2419.0,0.418]
[1728081675365,1.5879,2419.1,2418.9,0.83058]
[1728081675665,0.3954,2419.0,2418.9,0.83058]
[1728081676851,0.3954,2419.0,2418.8,0.81919]
[1728081677060,0.4272,2418.9,2418.8,0.81919]
[1728081677953,0.4272,2418.9,2418.8,1.35430458]